Cogmind - Beta 15 @@@ ROGUE MODE // 2025.06.07 @ 20:37:44 Player: CheifClapdad Result: Destroyed by G-47 Trooper with Particle Gun Performance ------------- Evolutions (0) 0 Regions Visited (2) 400 Robots Destroyed (8) 40 Value Destroyed (191) 191 Prototype IDs (0) 0 Alien Tech Used (0) 0 Bonus (-34) -34 TOTAL SCORE: 597 Bonus ------- Friendly Fire -34 Cogmind --------- Core Integrity 0/250 Matter 290/300 Energy 92/100 System Corruption 0% Temperature Cool (9) Movement Core (100) Ox1 Location -10/Mines Parts ------- > --- POWER (1) -------- (None) > --- PROPULSION (2) --- (None) > --- UTILITY (2) ------ Small Storage Unit > --- WEAPON (2) ------- Small Laser > --- INVENTORY (8) ---- Light Treads Wheel Compact Wheel Compact Wheel Compact Wheel Improved Heat Sink Small Storage Unit Peak State ------------ > --- POWER ------------ Ion Engine > --- PROPULSION ------- Light Treads Makeshift Leg > --- UTILITY ---------- Small Storage Unit > --- WEAPON ----------- Assault Rifle > --- INVENTORY -------- Light Treads Wheel Compact Wheel Compact Wheel Compact Wheel Improved Heat Sink Small Storage Unit [Rating: 8] Favorites ----------- Power Ion Engine Engine Ion Engine Propulsion Light Treads Treads Light Treads Leg Makeshift Leg Wheel Wheel Utility Small Storage Unit Storage Small Storage Unit Weapon Light Assault Rifle Energy Gun Small Laser Ballistic Gun Light Assault Rifle Build | -11 -10 -10 ------- Run | Yrd Mat Min Slots Evolved . | . . . Power . | . . . Propulsion . | . . . Utility . | . . . Weapon . | . . . Parts Attached 10 | 6 . 4 Power 1 | 1 . . Engine 1 | 1 . . Core . | . . . Reactor . | . . . Propulsion 4 | 2 . 2 Treads 2 | 1 . 1 Leg 1 | . . 1 Wheel 1 | 1 . . Hover . | . . . Flight . | . . . Utility 1 | 1 . . Device . | . . . Storage 1 | 1 . . Processor . | . . . Hackware . | . . . Protection . | . . . Artifact . | . . . Weapon 4 | 2 . 2 Energy Gun 1 | . . 1 Energy Cannon . | . . . Ballistic Gun 3 | 2 . 1 Ballistic Cannon . | . . . Launcher . | . . . Special Weapon . | . . . Impact Weapon . | . . . Slashing Weapon . | . . . Piercing Weapon . | . . . Special Melee Weapon . | . . . Unidentified Prototypes . | . . . Parts Lost 8 | . . 8 Power 1 | . . 1 Propulsion 4 | . . 4 Utility . | . . . Weapon 3 | . . 3 Highest Loss Streak 4 | . . 4 To Critical Strikes . | . . . Average Backups 5 | 3 7 7 Power . | . . . Propulsion 4 | 2 5 5 Utility 1 | . 1 1 Weapon . | . 1 . Tool/Special . | . . . Unused Backups 7 | . . 7 Power . | . . . Propulsion 5 | . . 5 Utility 2 | . . 2 Weapon . | . . . Tool/Special . | . . . Average Slot Usage (%) 60 | . 85 49 Engine 13 | . 14 13 Treads 7 | . 14 3 Leg 1 | . . 1 Wheel 5 | . 14 2 Storage 14 | . 14 14 Ballistic Gun 18 | . 28 14 Peak Build Rating 8 | 6 6 8 Average Rating 4 | 5 6 3 On Entrance 4 | . 6 6 Naked Turns . | . . . Heaviest Build 12 | 12 12 12 Greatest Support 20 | 20 20 20 Greatest Overweight (x) 3 | . . 3 Average Overweight (x) . | . . 2 Largest Inventory Capacity 8 | 8 8 8 Average Capacity 7 | 7 8 8 Most Carried 8 | 7 7 8 Average Carried 5 | 3 7 7 Final Capacity 8 | 8 8 8 Final Carried 7 | 7 7 7 Class Distribution -------------------- 100% | Mutant Dominant Class ---------------- Mutant | -10/Materials Mutant | -10/Mines Resources | -11 -10 -10 ----------- Run | Yrd Mat Min Matter Collected 458 | 246 . 212 Remotely . | . . . Salvage Created 337 | 86 13 238 Parts 21 | 6 2 13 Haulers Intercepted . | . . . Recyclers Shooed 2 | 1 . 1 Parts Field Recycled . | . . . Retrieved Matter . | . . . Parts Self-Destructed . | . . . Prevented . | . . . Kills | -11 -10 -10 ------- Run | Yrd Mat Min Combat Hostiles Destroyed 5 | . 1 4 Guns 5 | . 1 4 Classes Destroyed 4 | 2 1 1 Tunneler 1 | 1 . . Recycler 2 | 1 . 1 Swarmer 1 | . 1 . Grunt 4 | . . 4 Best Kill Streak 2 | 1 1 2 Combat Bots Only 2 | . 1 2 Max Kills in Single Turn 1 | 1 1 1 Gunslinging . | . . . Exploded . | . . . Melee . | . . . Uniques/NPCs Destroyed . | . . . Combat | -11 -10 -10 -------- Run | Yrd Mat Min Hostile Shots Fired 105 | . 21 84 Missed 26 | . 8 18 Hits 79 | . 13 66 Projectile 79 | . 13 66 Critical Strikes 3 | . 1 2 Damage Taken 1050 | . 99 951 Core 252 | . 8 244 Absorbed by Shields . | . . . Core Remaining (%) 100 | 100 . . Volleys Fired 87 | 10 6 71 Largest 2 | 2 2 2 Hottest 40 | 40 40 40 Shots Fired 113 | 20 12 81 Gun 113 | 20 12 81 Cannon . | . . . Launcher . | . . . Special . | . . . Kinetic 112 | 20 12 80 Thermal 1 | . . 1 Explosive . | . . . Electromagnetic . | . . . Robot Hit Streak 10 | 5 4 10 Robot Miss Streak 3 | 2 2 3 Penetration Max . | . . . Secondary Targets . | . . . Shots Hit Robots 69 | 13 8 48 Core Hits 29 | 5 4 20 Critical Kills 1 | . . 1 Critical Parts Destroyed . | . . . Critical Strikes 1 | . . 1 Destroy 1 | . . 1 Melee Attacks . | . . . Impact . | . . . Slashing . | . . . Piercing . | . . . Sneak Attacks . | . . . Combat Hostiles . | . . . Follow-up Attacks . | . . . Damage Inflicted 705 | 103 65 537 Guns 687 | 103 65 519 Cannons . | . . . Explosions . | . . . Melee . | . . . Ramming 18 | . . 18 Kinetic 677 | 103 65 509 Thermal 10 | . . 10 Explosive . | . . . Electromagnetic . | . . . Impact . | . . . Slashing . | . . . Piercing . | . . . Highest Corruption . | . . . Average Corruption . | . . . Corruption Purged . | . . . Corruption Blocked . | . . . Overload Shots . | . . . Overflow Damage . | . . . Projectiles . | . . . Explosions . | . . . Melee . | . . . Knockbacks . | . . . Impact . | . . . Kinetic . | . . . Secondary . | . . . Self-Inflicted Damage . | . . . Shots . | . . . Rammed 1 | . . 1 Targets Rammed 18 | . . 18 Kicked 17 | . . 17 Crushed . | . . . Highest Temperature 55 | . . 55 Average Temperature 26 | . . 26 Received Heat Transfer 597 | . 6 591 Siege Activations . | . . . Martial Activations . | . . . Shielding Activations . | . . . Robots Disrupted . | . . . Combat Hostiles . | . . . Robots Corrupted . | . . . Combat Hostiles . | . . . Parts Fried . | . . . Impact Corruptions . | . . . Robots Melted . | . . . Combat Hostiles . | . . . Parts Melted . | . . . Heat Transferred 25 | . . 25 Parts Sabotaged . | . . . Parts Stolen . | . . . Parts Stripped . | . . . Power Chain Reactions . | . . . Alert | -11 -10 -10 ------- Run | Yrd Mat Min Maximum Alert Level . | . . . Low Security (%) 100 | 100 100 100 Level 1 . | . . . Level 2 . | . . . Level 3 . | . . . Level 4 . | . . . Level 5 . | . . . High Security . | . . . Max Security . | . . . Peak Influence 45 | 5 20 45 Initial 7 | . . 7 Average 6 | . 3 11 Influence Increases 178 | 10 33 135 Destroy 0b10 Robot/C 100 | . 20 80 Destroy 0b10 Robot/NC 15 | 10 . 5 Destroy Leader 20 | . . 20 Successful Hack 13 | . 13 . Lose Combat Pursuer 30 | . . 30 Influence Decreases 178 | 10 13 155 Entered New Map 13 | . . 13 Time Decay 123 | 10 13 100 Lost Part 22 | . . 22 Lost Ally 20 | . . 20 Squads Dispatched 1 | . 1 . Investigation . | . . . Extermination . | . . . Reinforcement 1 | . 1 . Assault . | . . . Garrison . | . . . Intercept . | . . . Searches Triggered . | . . . Construction Impeded . | . . . Haulers Reinforced . | . . . Active Scanning Responses . | . . . Cargo Convoy Interrupts . | . . . Stealth | -11 -10 -10 --------- Run | Yrd Mat Min Distress Signals . | . . . Communications Jammed . | . . . Distress Signals . | . . . Times Spotted 14 | . 7 7 Peak Tracking Total 6 | . 6 2 Tactical Retreats 2 | . . 2 Traps | -11 -10 -10 ------- Run | Yrd Mat Min Traps Triggered . | . . . Indirectly . | . . . Trap Hack Attempts . | . . . Triggered . | . . . Disarmed . | . . . Reprogrammed . | . . . Reused . | . . . Traps Extracted . | . . . Installed . | . . . Triggered . | . . . Machines | -11 -10 -10 ---------- Run | Yrd Mat Min Machines Disabled . | . . . Max in Single Turn . | . . . Machines Repaired . | . . . Machines Dismantled . | . . . Machines Sabotaged . | . . . Overloaded Fab Kills . | . . . Hacking | -11 -10 -10 --------- Run | Yrd Mat Min Machines Accessed 1 | . 1 . Terminals 1 | . 1 . Fabricators . | . . . Repair Stations . | . . . Recycling Units . | . . . Scanalyzers . | . . . Garrison Access . | . . . Total Hacks 2 | . 2 . Successful 2 | . 2 . Failed . | . . . Catastrophic . | . . . Database Lockouts . | . . . Manual 2 | . 2 . Terminals 2 | . 2 . Fabricators . | . . . Repair Stations . | . . . Recycling Units . | . . . Scanalyzers . | . . . Garrison Access . | . . . Terminal Hacks 1 | . 1 . Branch Access Points 1 | . 1 . Fabricator Hacks . | . . . Repair Station Hacks . | . . . Recycling Unit Hacks . | . . . Scanalyzer . | . . . Garrison Access Hacks . | . . . Unauthorized Hacks 1 | . 1 . Terminals 1 | . 1 . Botnet 1 | . 1 . Fabricators . | . . . Repair Stations . | . . . Recycling Units . | . . . Scanalyzers . | . . . Garrison Access . | . . . Data Cores Recovered . | . . . Used . | . . . Hacking Detections . | . . . Full Trace Events . | . . . Feedback Events . | . . . Feedback Blocked . | . . . Robot Schematics Acquired . | . . . Robots Built . | . . . Authchips . | . . . Time . | . . . Total Robot Build Rating . | . . . Part Schematics Acquired . | . . . Parts Built . | . . . Authchips . | . . . Time . | . . . Total Part Build Rating . | . . . Parts Repaired . | . . . Time . | . . . Parts Recycled . | . . . Recycled Matter . | . . . Retrieved Matter . | . . . Retrieved Components . | . . . Parts Scanalyzed . | . . . Part Schematics Acquired . | . . . Parts Damaged . | . . . Bothacking | -11 -10 -10 ------------ Run | Yrd Mat Min Used RIF Installer . | . . . Robots Hacked . | . . . Non-combat . | . . . Combat . | . . . Robot Hacks Applied . | . . . Relay Couplers Released . | . . . Fabnet Peak Effective % . | . . . Robots Rewired . | . . . Allies Hacked . | . . . Hacks Repelled . | . . . Allies | -11 -10 -10 -------- Run | Yrd Mat Min Total Allies 2 | . . 2 Largest Group 2 | . . 2 Highest-Rated Group 41 | . . 41 Highest-Rated Ally 31 | . . 31 Total Orders . | . . . Ally Attacks 2 | . . 2 Total Damage . | . . . Kills . | . . . Allies Corrupted . | . . . Allies Melted . | . . . Intel | -11 -10 -10 ------- Run | Yrd Mat Min Active Infowar (turns) . | . . . Robot Analysis Total . | . . . Derelict Logs Recovered 1 | . . 1 Drone Launches . | . . . Drone Recoveries . | . . . Exploration | -11 -10 -10 ------------- Run | Yrd Mat Min Turns Passed 656 | 210 136 310 Spaces Moved 257 | 113 76 68 Core 62 | 8 . 54 Treads 191 | 101 76 14 Legs . | . . . Wheels 4 | 4 . . Hover . | . . . Flight . | . . . Fastest Speed 50 | 50 160 100 Average Speed 163 | 149 160 190 Slowest Speed 200 | 160 160 200 Overloaded Moves . | . . . Propulsion Burnouts . | . . . Robots Hopped . | . . . Potential Cave-ins . | . . . Cave-ins Triggered . | . . . Exploration Rate (%) 16 | 5 23 20 Regions Visited 2 Branch Regions 1 Pre-discovered Areas . | . . . Known Exits Taken 1 | . 1 . Unknown Exits Taken 1 | 1 . . Scrap Searched 1 | . . 1 Spaces Dug . | . . . Terrain Destroyed . | . . . Melee . | . . . Projectile . | . . . AOE . | . . . Terrain Rammed . | . . . Walls Destroyed . | . . . Machines Disabled . | . . . Actions | -11 -10 -10 --------- Run | Yrd Mat Min Total 381 | 135 81 165 Wait 3 | . . 3 Move 255 | 112 75 68 Hop . | . . . Pick Up 8 | 7 . 1 Fast Attach 9 | 6 . 3 Attach 1 | . . 1 Detach . | . . . Swap . | . . . Drop . | . . . Fire 87 | 10 6 71 Melee . | . . . Ram 1 | . . 1 Kick 17 | . . 17 Crush . | . . . Escape Stasis . | . . . Rewire . | . . . Trap . | . . . Miscellaneous . | . . . Route ------- -11/Scrapyard -10/Materials (discovered 2 exits: *Min x2) -10/Mines History --------- Turn | Location | Event 9 | -11/Scrapyard | Discovered new exit (range 15) 211 | -11/Scrapyard | Entered Materials 229 | -10/Materials | Discovered new exit (range 16) 301 | -10/Materials | Identified exit to Mines 307 | -10/Materials | Build established: Mutant 347 | -10/Materials | Entered Mines 414 | -10/Mines | Lost 3 parts (2n1w) 426 | -10/Mines | Learned Materials garrison access intel 479 | -10/Mines | Met a Derelict bent on vengeance 480 | -10/Mines | Core integrity fell below 50% 640 | -10/Mines | Core integrity fell below 20% 657 | -10/Mines | Destroyed by G-47 Trooper with Particle Gun Last Messages --------------- 00616_ Acquired Mak. Leg. 00617_ K-01 Serf collects debris. 00619_ K-01 Serf destroyed. 00621_ Critical hit (Burn: +37). 00627_ Assault Rifle destroyed. 00627_ Kicked G-47 Trooper. 00630_ Kicked G-47 Trooper out of the way. 00631_ Acquired 5 matter. 00632_ Kicked G-47 Trooper. 00633_ Ion Engine destroyed. 00633_ Kicked G-47 Trooper out of the way. 00636_ Kicked G-47 Trooper. 00637_ Kicked G-47 Trooper out of the way. 00639_ Kicked G-47 Trooper. 00649_ Lgt. Treads destroyed. 00650_ Kicked G-47 Trooper. 00651_ Mak. Leg destroyed. 00651_ Critical hit (Burn: +37). 00651_ Slammed into G-47 Trooper. 00653_ Acquired Sml. Laser. Map ----- +----------------------------------------------------+ | ???????????????????????????????????????? | | ???????????????????????????????????????? | | ???????????????????????????????????????? | | ???????????????????????????????????????? | | ???????????????????????????????????????? | | ???????????????????????????????????????? | | ???????????????????????????????????????? | | ???????????????????????????????????????? | | ??????????????????????? ????????????? | | ????????? ????????? ##??????????? | | ???? ???? ???????# #??????????? | | ???# ??? #??????## ??????????? | | ???# """ #??????? ??????????? | | ???# """ #??????? ??????????? | | ??## ##??????? #??????????? | | ??# ???????? #??????????? | | ??? ????????# ??????????? | | ???? ????????## ???????????? | | ????# ????????# ##??????????? | | ????# ?????????# #??????????? | | ????# ?????????# #??????????? | | ????# #??????????# #???????????? | | ?????# #???????????# ####?????????? | | ??????## #######?######! #?????????? | | ??????# %#?#*%*%%= ## #?????????? | | ??????# %*@###%####* #????????????? | | ??????# %!g**=%#??# #????????????? | | ??????# !=#####?# ???????????? | | ??????# %!#????# ?????????? | | ??????# #???# ???????? | | ??????###########?? #?????? | | ?????????????????? #?????? | | ?????????????????# ????? | | ????????????????# ## #???? | | ??????????????? ?? ### #???? | | ?????????????? ## ??# ##???#???? | | ?????????????? #?## #???###????????? | | ?????????????? ????## ???????????????? | | ????????????????????## ???????????????? | | ?????????????????????# ???????????????? | | ?????????????????????# ????????????????? | | ???????????????????????????????????????? | | ???????????????????????????????????????? | | ???????????????????????????????????????? | | ???????????????????????????????????????? | | ???????????????????????????????????????? | | ???????????????????????????????????????? | | ???????????????????????????????????????? | | ???????????????????????????????????????? | | ???????????????????????????????????????? | +----------------------------------------------------+ Best States ------------- Heat Dissipation 25 Energy Generation 10 Energy Capacity 250 Matter Stores 300 Matter Capacity 300 Sight Range 16 Terrain Scan Density 10 Evasion (%) 44 Recoil Reduction 1 Item Schematics ----------------- None Robot Schematics ------------------ None Fabricated ------------ Nothing Repaired ---------- Nothing Alien Tech Used ----------------- None Achievements -------------- None Challenges ------------ None Game ------ Seed AmuletDisruptionCorpse Manual? 0 Play Time 00:05:13 Cumulative 64.0 hours Start 2025.06.07 @ 20:34:17 End 2025.06.07 @ 20:37:44 Sessions 1 Manual Loads 0 Difficulty Rogue Special Mode None Game No. 83 Rogue 83 Adventurer 0 Explorer 0 Win Type - Total 1 Types 1/0/0/0/0/0/0/0/0/0 Lore% 30 Gallery% 42 Achievement% 37 Wizard Run 0 Options --------- Layout 1 ASCII 0 Keyboard 0 Movement Arrows Keybinds 0 Fullscreen 1 Font 24/Smallcaps Map View 50x35 Zoom Use 0% Tactical HUD 1 Map Filters NONE Filters NONE Steam X RUN: 09b68643-4228-459e-8eb5-ee8ec376c06c